[Event "Titled Tuesday Blitz January 10 Early 2023"]
[White "Salman, Pavel"]
[Black "Ilkhomi, Jaloliddin"]
[WhiteFideId "24153753"]
[BlackFideId "14700948"]
[WhiteElo "2287"]
[BlackElo "1997"]
[Result "1-0"]
[Round "06"]
[TimeControl "180+2"]
[Date "2023.01.10"]
[WhiteClock "0:00:14"]
[BlackClock "0:00:16"]

1. Nf3 {[%clk 0:03:00]}  Nf6 {[%clk 0:02:58]} 2. g3 {[%clk 0:03:01]}  d5 {[%clk 0:02:57]} 3. Bg2 {[%clk 0:03:02]}  c6 {[%clk 0:02:57]} 4. O-O {[%clk 0:03:03]}  Bg4 {[%clk 0:02:57]} 5. d3 {[%clk 0:03:02]}  Nbd7 {[%clk 0:02:58]} 6. h3 {[%clk 0:03:03]}  Bxf3 {[%clk 0:02:56]} 7. Bxf3 {[%clk 0:03:02]}  e5 {[%clk 0:02:55]} 8. e4 {[%clk 0:03:03]}  dxe4 {[%clk 0:02:54]} 9. dxe4 {[%clk 0:03:02]}  Bc5 {[%clk 0:02:55]} 10. Nd2 {[%clk 0:03:02]}  O-O {[%clk 0:02:54]} 11. Nb3 {[%clk 0:03:01]}  Bb6 {[%clk 0:02:53]} 12. a4 {[%clk 0:03:01]}  Qe7 {[%clk 0:02:50]} 13. a5 {[%clk 0:03:00]}  Bc7 {[%clk 0:02:51]} 14. Bd2 {[%clk 0:02:58]}  Rad8 {[%clk 0:02:50]} 15. Qe2 {[%clk 0:02:58]}  Qe6 {[%clk 0:02:45]} 16. Bg2 {[%clk 0:02:57]}  b6 {[%clk 0:02:44]} 17. Bc3 {[%clk 0:02:51]}  Rfe8 {[%clk 0:02:27]} 18. Rfd1 {[%clk 0:02:51]}  c5 {[%clk 0:02:23]} 19. Nd2 {[%clk 0:02:36]}  Nb8 {[%clk 0:02:10]} 20. Nf1 {[%clk 0:02:34]}  Nc6 {[%clk 0:02:09]} 21. Ne3 {[%clk 0:02:25]}  Nd4 {[%clk 0:02:09]} 22. Bxd4 {[%clk 0:02:25]}  exd4 {[%clk 0:02:10]} 23. axb6 {[%clk 0:01:42]}  axb6 {[%clk 0:02:01]} 24. Nc4 {[%clk 0:01:38]}  b5 {[%clk 0:01:32]} 25. Nd2 {[%clk 0:01:36]}  c4 {[%clk 0:01:29]} 26. Re1 {[%clk 0:01:23]}  Qb6 {[%clk 0:01:26]} 27. Kh1 {[%clk 0:01:16]}  d3 {[%clk 0:01:22]} 28. cxd3 {[%clk 0:01:16]}  Rxd3 {[%clk 0:01:23]} 29. Nf1 {[%clk 0:01:11]}  h6 {[%clk 0:01:15]} 30. Red1 {[%clk 0:01:05]}  Red8 {[%clk 0:01:02]} 31. Rxd3 {[%clk 0:00:57]}  Rxd3 {[%clk 0:00:58]} 32. e5 {[%clk 0:00:54]}  Ne8 {[%clk 0:00:49]} 33. Ra8 {[%clk 0:00:52]}  Rd8 {[%clk 0:00:49]} 34. Rxd8 {[%clk 0:00:49]}  Bxd8 {[%clk 0:00:50]} 35. Ne3 {[%clk 0:00:49]}  Nc7 {[%clk 0:00:50]} 36. Nd5 {[%clk 0:00:39]}  Nxd5 {[%clk 0:00:48]} 37. Bxd5 {[%clk 0:00:40]}  Qd4 {[%clk 0:00:47]} 38. Qf3 {[%clk 0:00:40]}  Qa7 {[%clk 0:00:38]} 39. e6 {[%clk 0:00:40]}  fxe6 {[%clk 0:00:29]} 40. Bxe6+ {[%clk 0:00:41]}  Kh7 {[%clk 0:00:30]} 41. Qf5+ {[%clk 0:00:23]}  g6 {[%clk 0:00:30]} 42. Qf8 {[%clk 0:00:22]}  Qg7 {[%clk 0:00:07]} 43. Qxd8 {[%clk 0:00:22]}  h5 {[%clk 0:00:04]} 44. Qd2 {[%clk 0:00:18]}  Qf6 {[%clk 0:00:04]} 45. Bd5 {[%clk 0:00:18]}  Qe5 {[%clk 0:00:03]} 46. Kg2 {[%clk 0:00:18]}  b4 {[%clk 0:00:04]} 47. Bf3 {[%clk 0:00:16]}  c3 {[%clk 0:00:03]} 48. bxc3 {[%clk 0:00:16]}  bxc3 {[%clk 0:00:04]} 49. Qd7+ {[%clk 0:00:17]}  Kh6 {[%clk 0:00:04]} 50. Qc8 {[%clk 0:00:17]}  Kh7 {[%clk 0:00:05]} 51. Qb7+ {[%clk 0:00:15]}  Kh6 {[%clk 0:00:05]} 52. Qc6 {[%clk 0:00:16]}  Kh7 {[%clk 0:00:05]} 53. Be4 {[%clk 0:00:16]}  Qg7 {[%clk 0:00:03]} 54. h4 {[%clk 0:00:15]}  Kh6 {[%clk 0:00:03]} 55. Qc4 {[%clk 0:00:12]}  Kh7 {[%clk 0:00:03]} 56. Qd3 {[%clk 0:00:12]}  Qf7 {[%clk 0:00:03]} 57. Bf3 {[%clk 0:00:11]}  Qf6 {[%clk 0:00:03]} 58. Bxh5 {[%clk 0:00:10]}  Kh6 {[%clk 0:00:04]} 59. Bf3 {[%clk 0:00:10]}  Kg7 {[%clk 0:00:04]} 60. Qc2 {[%clk 0:00:10]}  Kh6 {[%clk 0:00:05]} 61. Be4 {[%clk 0:00:10]}  Qd4 {[%clk 0:00:05]} 62. Qe2 {[%clk 0:00:11]}  Kg7 {[%clk 0:00:04]} 63. Qg4 {[%clk 0:00:11]}  Qd6 {[%clk 0:00:04]} 64. Bc2 {[%clk 0:00:10]}  Qc6+ {[%clk 0:00:05]} 65. Qe4 {[%clk 0:00:10]}  Qd6 {[%clk 0:00:06]} 66. h5 {[%clk 0:00:09]}  gxh5 {[%clk 0:00:06]} 67. Qh7+ {[%clk 0:00:10]}  Kf6 {[%clk 0:00:06]} 68. Qh6+ {[%clk 0:00:09]}  Ke7 {[%clk 0:00:07]} 69. Qxd6+ {[%clk 0:00:10]}  Kxd6 {[%clk 0:00:08]} 70. Kh3 {[%clk 0:00:11]}  Ke5 {[%clk 0:00:08]} 71. Kh4 {[%clk 0:00:11]}  Kd4 {[%clk 0:00:08]} 72. Kxh5 {[%clk 0:00:12]}  Kc4 {[%clk 0:00:09]} 73. g4 {[%clk 0:00:12]}  Kb4 {[%clk 0:00:10]} 74. g5 {[%clk 0:00:13]}  Ka3 {[%clk 0:00:11]} 75. g6 {[%clk 0:00:14]}  Kb2 {[%clk 0:00:12]} 76. Bf5 {[%clk 0:00:15]}  Kc1 {[%clk 0:00:12]} 77. g7 {[%clk 0:00:15]}  Kd2 {[%clk 0:00:12]} 78. g8=Q {[%clk 0:00:15]}  c2 {[%clk 0:00:13]} 79. Bxc2 {[%clk 0:00:15]}  Ke2 {[%clk 0:00:13]} 80. Qe6+ {[%clk 0:00:15]}  Kf1 {[%clk 0:00:14]} 81. Bd3+ {[%clk 0:00:15]}  Kg2 {[%clk 0:00:15]} 82. Qg4+ {[%clk 0:00:15]}  Kh2 {[%clk 0:00:16]} 83. Qg3+ {[%clk 0:00:13]}  Kh1 {[%clk 0:00:16]} 84. Be4# {[%clk 0:00:14]} 1-0


[Site "https://www.chess.com"]

[Event "Titled Tuesday Blitz January 10 Early 2023"]
[White "Sanchez, Robert"]
[Black "Tillyaev, Ulugbek"]
[WhiteFideId "2034360"]
[BlackFideId "14202441"]
[WhiteElo "1966"]
[BlackElo "2287"]
[Result "0-1"]
[Round "06"]
[TimeControl "180+2"]
[Date "2023.01.10"]
[WhiteClock "0:00:14"]
[BlackClock "0:00:59"]

1. e4 {[%clk 0:03:00]}  c5 {[%clk 0:03:00]} 2. Nf3 {[%clk 0:03:01]}  Nc6 {[%clk 0:02:59]} 3. d4 {[%clk 0:03:01]}  cxd4 {[%clk 0:02:59]} 4. Nxd4 {[%clk 0:03:01]}  g6 {[%clk 0:02:58]} 5. c4 {[%clk 0:03:00]}  Bg7 {[%clk 0:02:57]} 6. Nc2 {[%clk 0:02:58]}  Nf6 {[%clk 0:02:57]} 7. Nc3 {[%clk 0:02:59]}  O-O {[%clk 0:02:58]} 8. Be2 {[%clk 0:02:59]}  Qa5 {[%clk 0:02:54]} 9. O-O {[%clk 0:02:59]}  d6 {[%clk 0:02:54]} 10. f3 {[%clk 0:02:56]}  a6 {[%clk 0:02:52]} 11. Kh1 {[%clk 0:02:56]}  Be6 {[%clk 0:02:51]} 12. Nd5 {[%clk 0:02:51]}  Rfc8 {[%clk 0:02:47]} 13. Bd2 {[%clk 0:02:43]}  Qd8 {[%clk 0:02:44]} 14. Be3 {[%clk 0:02:41]}  Bxd5 {[%clk 0:02:41]} 15. cxd5 {[%clk 0:02:39]}  Ne5 {[%clk 0:02:41]} 16. Na3 {[%clk 0:02:37]}  h5 {[%clk 0:02:39]} 17. Qb3 {[%clk 0:02:32]}  b5 {[%clk 0:02:36]} 18. Rac1 {[%clk 0:02:31]}  h4 {[%clk 0:02:34]} 19. f4 {[%clk 0:02:06]}  Neg4 {[%clk 0:02:30]} 20. Bd4 {[%clk 0:02:06]}  Rxc1 {[%clk 0:02:18]} 21. Rxc1 {[%clk 0:02:04]}  Nxe4 {[%clk 0:02:16]} 22. Bxg7 {[%clk 0:01:58]}  Ngf2+ {[%clk 0:02:16]} 23. Kg1 {[%clk 0:01:57]}  Kxg7 {[%clk 0:02:17]} 24. Qe3 {[%clk 0:01:45]}  f5 {[%clk 0:02:06]} 25. Rf1 {[%clk 0:01:35]}  Rc8 {[%clk 0:01:59]} 26. Rxf2 {[%clk 0:01:22]}  Nxf2 {[%clk 0:02:00]} 27. Kxf2 {[%clk 0:01:22]}  Rc5 {[%clk 0:02:00]} 28. Bf3 {[%clk 0:01:04]}  Qc7 {[%clk 0:01:56]} 29. b3 {[%clk 0:00:52]}  Rc3 {[%clk 0:01:41]} 30. Qd4+ {[%clk 0:00:51]}  Kh7 {[%clk 0:01:42]} 31. Be2 {[%clk 0:00:41]}  Qc5 {[%clk 0:01:37]} 32. Qxc5 {[%clk 0:00:39]}  dxc5 {[%clk 0:01:34]} 33. Ke1 {[%clk 0:00:36]}  Rc1+ {[%clk 0:01:30]} 34. Kd2 {[%clk 0:00:35]}  Ra1 {[%clk 0:01:31]} 35. Nc2 {[%clk 0:00:28]}  Rxa2 {[%clk 0:01:18]} 36. Kc1 {[%clk 0:00:27]}  Kg7 {[%clk 0:01:14]} 37. Kb1 {[%clk 0:00:28]}  Ra5 {[%clk 0:01:14]} 38. Kb2 {[%clk 0:00:27]}  Kf6 {[%clk 0:01:14]} 39. Ne1 {[%clk 0:00:20]}  c4 {[%clk 0:01:09]} 40. Nf3 {[%clk 0:00:19]}  cxb3 {[%clk 0:01:07]} 41. Kxb3 {[%clk 0:00:20]}  Ra4 {[%clk 0:01:07]} 42. g3 {[%clk 0:00:19]}  hxg3 {[%clk 0:01:06]} 43. hxg3 {[%clk 0:00:20]}  Re4 {[%clk 0:01:06]} 44. Bd1 {[%clk 0:00:18]}  a5 {[%clk 0:01:07]} 45. Kc3 {[%clk 0:00:18]}  a4 {[%clk 0:01:05]} 46. Kd3 {[%clk 0:00:18]}  Rb4 {[%clk 0:00:59]} 47. Kc3 {[%clk 0:00:17]}  Rc4+ {[%clk 0:00:59]} 48. Kd3 {[%clk 0:00:17]}  Rc1 {[%clk 0:00:59]} 49. Bc2 {[%clk 0:00:17]}  a3 {[%clk 0:00:59]} 50. Nd2 {[%clk 0:00:14]} 0-1


[Site "https://www.chess.com"]

[Event "Titled Tuesday Blitz January 10 Early 2023"]
[White "Leiva, Gianmarco"]
[Black "Flynn, Jacob"]
[WhiteFideId "3804399"]
[BlackFideId "2509393"]
[WhiteElo "2392"]
[BlackElo "2102"]
[Result "0-1"]
[Round "06"]
[TimeControl "180+2"]
[Date "2023.01.10"]
[WhiteClock "0:00:02"]
[BlackClock "0:00:03"]

1. e4 {[%clk 0:03:00]}  e5 {[%clk 0:02:59]} 2. Nf3 {[%clk 0:03:00]}  Nc6 {[%clk 0:03:00]} 3. Bb5 {[%clk 0:02:57]}  a6 {[%clk 0:03:00]} 4. Ba4 {[%clk 0:02:57]}  Nf6 {[%clk 0:03:00]} 5. O-O {[%clk 0:02:57]}  Be7 {[%clk 0:03:01]} 6. Re1 {[%clk 0:02:57]}  b5 {[%clk 0:03:02]} 7. Bb3 {[%clk 0:02:57]}  O-O {[%clk 0:03:03]} 8. c3 {[%clk 0:02:53]}  d5 {[%clk 0:03:03]} 9. d3 {[%clk 0:02:43]}  dxe4 {[%clk 0:02:55]} 10. dxe4 {[%clk 0:02:43]}  Bg4 {[%clk 0:02:53]} 11. Nbd2 {[%clk 0:02:42]}  Bd6 {[%clk 0:02:46]} 12. h3 {[%clk 0:02:42]}  Bh5 {[%clk 0:02:42]} 13. Nf1 {[%clk 0:02:42]}  h6 {[%clk 0:02:35]} 14. Ng3 {[%clk 0:02:42]}  Bg6 {[%clk 0:02:35]} 15. Nh4 {[%clk 0:02:40]}  Bh7 {[%clk 0:02:32]} 16. Nhf5 {[%clk 0:02:40]}  Bc5 {[%clk 0:02:25]} 17. Qf3 {[%clk 0:02:32]}  Nd7 {[%clk 0:02:15]} 18. Nxg7 {[%clk 0:02:13]}  Kxg7 {[%clk 0:02:14]} 19. Nh5+ {[%clk 0:02:09]}  Kh8 {[%clk 0:02:14]} 20. Bxh6 {[%clk 0:02:07]}  Rg8 {[%clk 0:02:07]} 21. Rad1 {[%clk 0:02:03]}  Rg6 {[%clk 0:01:48]} 22. Qxf7 {[%clk 0:02:00]}  Qe7 {[%clk 0:01:39]} 23. Bg7+ {[%clk 0:01:22]}  Rxg7 {[%clk 0:01:37]} 24. Qxg7+ {[%clk 0:01:15]}  Qxg7 {[%clk 0:01:35]} 25. Nxg7 {[%clk 0:01:16]}  Nf6 {[%clk 0:01:25]} 26. Ne6 {[%clk 0:01:15]}  Bd6 {[%clk 0:01:24]} 27. Ng5 {[%clk 0:01:15]}  Bg6 {[%clk 0:01:22]} 28. Nf7+ {[%clk 0:01:15]}  Bxf7 {[%clk 0:01:21]} 29. Bxf7 {[%clk 0:01:16]}  Kg7 {[%clk 0:01:21]} 30. Be6 {[%clk 0:01:10]}  Re8 {[%clk 0:01:18]} 31. Bf5 {[%clk 0:01:03]}  Ne7 {[%clk 0:01:15]} 32. g3 {[%clk 0:00:58]}  Rb8 {[%clk 0:01:07]} 33. Kg2 {[%clk 0:00:54]}  a5 {[%clk 0:01:07]} 34. h4 {[%clk 0:00:50]}  Nxf5 {[%clk 0:00:58]} 35. exf5 {[%clk 0:00:50]}  e4 {[%clk 0:00:59]} 36. Kh3 {[%clk 0:00:48]}  b4 {[%clk 0:00:55]} 37. c4 {[%clk 0:00:47]}  b3 {[%clk 0:00:53]} 38. a3 {[%clk 0:00:46]}  Be5 {[%clk 0:00:47]} 39. Re2 {[%clk 0:00:44]}  Rb6 {[%clk 0:00:39]} 40. f3 {[%clk 0:00:42]}  Rc6 {[%clk 0:00:38]} 41. Rc1 {[%clk 0:00:40]}  e3 {[%clk 0:00:28]} 42. g4 {[%clk 0:00:30]}  a4 {[%clk 0:00:20]} 43. Rce1 {[%clk 0:00:05]}  Rxc4 {[%clk 0:00:18]} 44. Rxe3 {[%clk 0:00:05]}  Bxb2 {[%clk 0:00:15]} 45. Re7+ {[%clk 0:00:04]}  Kf8 {[%clk 0:00:15]} 46. g5 {[%clk 0:00:04]}  Bc3 {[%clk 0:00:10]} 47. gxf6 {[%clk 0:00:02]}  Bxe1 {[%clk 0:00:10]} 48. Rxe1 {[%clk 0:00:02]}  Rc2 {[%clk 0:00:06]} 49. Re4 {[%clk 0:00:02]}  Ra2 {[%clk 0:00:05]} 50. Rxa4 {[%clk 0:00:02]}  c5 {[%clk 0:00:05]} 51. Ra7 {[%clk 0:00:01]}  c4 {[%clk 0:00:04]} 52. Kg4 {[%clk 0:00:01]}  c3 {[%clk 0:00:04]} 53. Kg5 {[%clk 0:00:01]}  Rg2+ {[%clk 0:00:03]} 54. Kh6 {[%clk 0:00:01]}  c2 {[%clk 0:00:02]} 55. Rg7 {[%clk 0:00:01]}  c1=Q+ {[%clk 0:00:01]} 56. Kh7 {[%clk 0:00:01]}  Rxg7+ {[%clk 0:00:02]} 57. fxg7+ {[%clk 0:00:02]}  Ke7 {[%clk 0:00:02]} 58. g8=Q {[%clk 0:00:01]}  b2 {[%clk 0:00:02]} 59. Qg7+ {[%clk 0:00:02]}  Kd6 {[%clk 0:00:02]} 60. Qd4+ {[%clk 0:00:02]}  Kc6 {[%clk 0:00:01]} 61. Qe4+ {[%clk 0:00:02]}  Kb6 {[%clk 0:00:01]} 62. Qe6+ {[%clk 0:00:02]}  Ka5 {[%clk 0:00:02]} 63. Qe5+ {[%clk 0:00:02]}  Ka4 {[%clk 0:00:02]} 64. Qe8+ {[%clk 0:00:01]}  Kb3 {[%clk 0:00:03]} 65. Qe6+ {[%clk 0:00:01]}  Kc2 {[%clk 0:00:03]} 66. Qc4+ {[%clk 0:00:01]}  Kb1 {[%clk 0:00:03]} 67. Qe4+ {[%clk 0:00:01]}  Ka1 {[%clk 0:00:03]} 68. f6 {[%clk 0:00:02]}  b1=Q {[%clk 0:00:04]} 69. f7 {[%clk 0:00:02]}  Qc7 {[%clk 0:00:03]} 0-1


[Site "https://www.chess.com"]

[Event "Titled Tuesday Blitz January 10 Early 2023"]
[White "Barria Zuniga, Daniel"]
[Black "Luukkonen, Tommi"]
[WhiteFideId "3400816"]
[BlackFideId "501808"]
[WhiteElo "2341"]
[BlackElo "2292"]
[Result "1-0"]
[Round "06"]
[TimeControl "180+2"]
[Date "2023.01.10"]
[WhiteClock "0:00:10"]
[BlackClock "0:00:01"]

1. d4 {[%clk 0:03:00]}  d5 {[%clk 0:02:58]} 2. c4 {[%clk 0:03:01]}  e6 {[%clk 0:02:58]} 3. Nf3 {[%clk 0:03:01]}  c6 {[%clk 0:02:59]} 4. Nc3 {[%clk 0:03:01]}  Nf6 {[%clk 0:02:59]} 5. Bg5 {[%clk 0:03:00]}  h6 {[%clk 0:02:59]} 6. Bxf6 {[%clk 0:02:59]}  Qxf6 {[%clk 0:03:00]} 7. e3 {[%clk 0:02:59]}  Nd7 {[%clk 0:02:59]} 8. Qc2 {[%clk 0:02:59]}  g6 {[%clk 0:02:55]} 9. O-O-O {[%clk 0:03:00]}  Bg7 {[%clk 0:02:53]} 10. Kb1 {[%clk 0:03:00]}  O-O {[%clk 0:02:52]} 11. h4 {[%clk 0:02:58]}  dxc4 {[%clk 0:02:44]} 12. Bxc4 {[%clk 0:02:55]}  b5 {[%clk 0:02:43]} 13. Be2 {[%clk 0:02:48]}  Bb7 {[%clk 0:02:33]} 14. g4 {[%clk 0:02:46]}  Qe7 {[%clk 0:02:29]} 15. g5 {[%clk 0:02:43]}  h5 {[%clk 0:02:29]} 16. e4 {[%clk 0:02:37]}  b4 {[%clk 0:02:26]} 17. Na4 {[%clk 0:02:35]}  c5 {[%clk 0:02:24]} 18. d5 {[%clk 0:02:31]}  exd5 {[%clk 0:02:22]} 19. exd5 {[%clk 0:02:32]}  Qd6 {[%clk 0:02:18]} 20. Nd2 {[%clk 0:02:29]}  Nb6 {[%clk 0:02:15]} 21. Ne4 {[%clk 0:02:25]}  Qe5 {[%clk 0:02:15]} 22. Naxc5 {[%clk 0:02:22]}  Bxd5 {[%clk 0:02:11]} 23. f4 {[%clk 0:02:17]}  Qe7 {[%clk 0:02:02]} 24. Ba6 {[%clk 0:02:02]}  Rad8 {[%clk 0:01:48]} 25. Rhe1 {[%clk 0:01:59]}  Qc7 {[%clk 0:01:42]} 26. f5 {[%clk 0:01:42]}  Bxe4 {[%clk 0:01:34]} 27. Nxe4 {[%clk 0:01:42]}  Qxc2+ {[%clk 0:01:34]} 28. Kxc2 {[%clk 0:01:42]}  gxf5 {[%clk 0:01:33]} 29. Ng3 {[%clk 0:01:39]}  Na4 {[%clk 0:01:24]} 30. Nxf5 {[%clk 0:01:29]}  Bxb2 {[%clk 0:01:20]} 31. Rxd8 {[%clk 0:01:03]}  Rxd8 {[%clk 0:01:21]} 32. Bc4 {[%clk 0:01:02]}  Nb6 {[%clk 0:01:10]} 33. Bb3 {[%clk 0:01:00]}  Bc3 {[%clk 0:01:08]} 34. Re7 {[%clk 0:00:59]}  Rd2+ {[%clk 0:01:07]} 35. Kc1 {[%clk 0:00:59]}  Kf8 {[%clk 0:00:59]} 36. Rxf7+ {[%clk 0:00:57]}  Ke8 {[%clk 0:00:58]} 37. g6 {[%clk 0:00:53]}  Rg2 {[%clk 0:00:54]} 38. g7 {[%clk 0:00:53]}  Nd7 {[%clk 0:00:42]} 39. Rxd7 {[%clk 0:00:50]}  Kxd7 {[%clk 0:00:42]} 40. g8=Q {[%clk 0:00:50]}  Rxg8 {[%clk 0:00:41]} 41. Bxg8 {[%clk 0:00:49]}  Bf6 {[%clk 0:00:42]} 42. Bf7 {[%clk 0:00:48]}  a5 {[%clk 0:00:39]} 43. Bxh5 {[%clk 0:00:45]}  Ke6 {[%clk 0:00:40]} 44. Bg4 {[%clk 0:00:40]}  Ke5 {[%clk 0:00:40]} 45. Kc2 {[%clk 0:00:39]}  a4 {[%clk 0:00:40]} 46. h5 {[%clk 0:00:36]}  Kf4 {[%clk 0:00:37]} 47. Bh3 {[%clk 0:00:34]}  Kg5 {[%clk 0:00:32]} 48. h6 {[%clk 0:00:33]}  Kg6 {[%clk 0:00:31]} 49. Bg4 {[%clk 0:00:30]}  Be5 {[%clk 0:00:28]} 50. Kb1 {[%clk 0:00:29]}  Bf6 {[%clk 0:00:27]} 51. Bh3 {[%clk 0:00:27]}  Be5 {[%clk 0:00:27]} 52. Ne3 {[%clk 0:00:20]}  Bc3 {[%clk 0:00:17]} 53. Ng4 {[%clk 0:00:19]}  Bd2 {[%clk 0:00:13]} 54. Bf1 {[%clk 0:00:15]}  Bf4 {[%clk 0:00:10]} 55. Be2 {[%clk 0:00:15]}  Bd2 {[%clk 0:00:07]} 56. Bd1 {[%clk 0:00:14]}  a3 {[%clk 0:00:07]} 57. Kc2 {[%clk 0:00:11]}  Bc3 {[%clk 0:00:06]} 58. Kb3 {[%clk 0:00:11]}  Kf7 {[%clk 0:00:05]} 59. Bc2 {[%clk 0:00:10]}  Kg8 {[%clk 0:00:05]} 60. Kc4 {[%clk 0:00:10]}  Kh8 {[%clk 0:00:04]} 61. Kb3 {[%clk 0:00:10]}  Be1 {[%clk 0:00:03]} 62. h7 {[%clk 0:00:10]}  Bc3 {[%clk 0:00:03]} 63. Ne3 {[%clk 0:00:10]}  Bd2 {[%clk 0:00:01]} 64. Nd5 {[%clk 0:00:10]}  Bc3 {[%clk 0:00:01]} 65. Nxb4 {[%clk 0:00:10]} 1-0


[Site "https://www.chess.com"]

[Event "Titled Tuesday Blitz January 10 Early 2023"]
[White "Donskov, Anatoly"]
[Black "Demin, Vladimir"]
[WhiteFideId "24143413"]
[BlackFideId "4167457"]
[WhiteElo "2279"]
[BlackElo "2430"]
[Result "0-1"]
[Round "06"]
[TimeControl "180+2"]
[Date "2023.01.10"]
[WhiteClock "0:00:01"]
[BlackClock "0:01:42"]

1. e4 {[%clk 0:03:00]}  Nf6 {[%clk 0:02:58]} 2. e5 {[%clk 0:03:00]}  Nd5 {[%clk 0:02:58]} 3. c4 {[%clk 0:02:51]}  Nb6 {[%clk 0:02:57]} 4. d4 {[%clk 0:02:52]}  d6 {[%clk 0:02:57]} 5. f4 {[%clk 0:02:46]}  dxe5 {[%clk 0:02:56]} 6. fxe5 {[%clk 0:02:42]}  Bf5 {[%clk 0:02:57]} 7. Nf3 {[%clk 0:02:28]}  e6 {[%clk 0:02:56]} 8. Be3 {[%clk 0:02:16]}  Bb4+ {[%clk 0:02:53]} 9. Nc3 {[%clk 0:02:16]}  c5 {[%clk 0:02:52]} 10. a3 {[%clk 0:01:58]}  Bxc3+ {[%clk 0:02:51]} 11. bxc3 {[%clk 0:01:57]}  Nc6 {[%clk 0:02:52]} 12. Bd3 {[%clk 0:01:39]}  Na5 {[%clk 0:02:41]} 13. Bxf5 {[%clk 0:01:30]}  exf5 {[%clk 0:02:42]} 14. d5 {[%clk 0:01:31]}  Naxc4 {[%clk 0:02:37]} 15. Bxc5 {[%clk 0:01:26]}  Qxd5 {[%clk 0:02:35]} 16. Qxd5 {[%clk 0:00:43]}  Nxd5 {[%clk 0:02:36]} 17. Rd1 {[%clk 0:00:44]}  Rd8 {[%clk 0:01:57]} 18. O-O {[%clk 0:00:21]}  b6 {[%clk 0:01:57]} 19. Bd6 {[%clk 0:00:12]}  Nde3 {[%clk 0:01:50]} 20. Rd4 {[%clk 0:00:08]}  Nxd6 {[%clk 0:01:47]} 21. exd6 {[%clk 0:00:05]}  Nxf1 {[%clk 0:01:47]} 22. Kxf1 {[%clk 0:00:06]}  f6 {[%clk 0:01:47]} 23. Nd2 {[%clk 0:00:02]}  Kd7 {[%clk 0:01:45]} 24. a4 {[%clk 0:00:02]}  Rhe8 {[%clk 0:01:44]} 25. a5 {[%clk 0:00:02]}  Rc8 {[%clk 0:01:42]} 26. axb6 {[%clk 0:00:01]}  axb6 {[%clk 0:01:43]} 27. Nc4 {[%clk 0:00:01]}  Rc6 {[%clk 0:01:42]} 0-1


[Site "https://www.chess.com"]

[Event "Titled Tuesday Blitz January 10 Early 2023"]
[White "Wahedi, Ahmad Siar"]
[Black "Osmak, Yuliia"]
[WhiteFideId "4651260"]
[BlackFideId "14101602"]
[WhiteElo "2274"]
[BlackElo "2440"]
[Result "1-0"]
[Round "06"]
[TimeControl "180+2"]
[Date "2023.01.10"]
[WhiteClock "0:00:57"]
[BlackClock "0:00:02"]

1. e4 {[%clk 0:03:00]}  c6 {[%clk 0:02:54]} 2. d4 {[%clk 0:03:00]}  d5 {[%clk 0:02:54]} 3. e5 {[%clk 0:03:00]}  Bf5 {[%clk 0:02:53]} 4. h4 {[%clk 0:03:01]}  h5 {[%clk 0:02:52]} 5. Bd3 {[%clk 0:03:01]}  Bxd3 {[%clk 0:02:52]} 6. Qxd3 {[%clk 0:03:02]}  Qa5+ {[%clk 0:02:51]} 7. Nd2 {[%clk 0:02:59]}  e6 {[%clk 0:02:51]} 8. Nf3 {[%clk 0:02:52]}  Ne7 {[%clk 0:02:49]} 9. O-O {[%clk 0:02:48]}  Nf5 {[%clk 0:02:49]} 10. b3 {[%clk 0:02:47]}  Be7 {[%clk 0:02:47]} 11. c4 {[%clk 0:02:46]}  Qa6 {[%clk 0:02:36]} 12. Qc2 {[%clk 0:02:45]}  O-O {[%clk 0:02:26]} 13. a4 {[%clk 0:02:43]}  Nxh4 {[%clk 0:02:01]} 14. Nxh4 {[%clk 0:02:42]}  Bxh4 {[%clk 0:02:02]} 15. Nf3 {[%clk 0:02:41]}  Be7 {[%clk 0:02:01]} 16. c5 {[%clk 0:02:27]}  b6 {[%clk 0:01:53]} 17. b4 {[%clk 0:02:26]}  bxc5 {[%clk 0:01:28]} 18. bxc5 {[%clk 0:02:25]}  Nd7 {[%clk 0:01:27]} 19. Be3 {[%clk 0:02:22]}  Rab8 {[%clk 0:01:25]} 20. Rfb1 {[%clk 0:02:21]}  g6 {[%clk 0:01:13]} 21. Bh6 {[%clk 0:02:18]}  Rxb1+ {[%clk 0:01:04]} 22. Rxb1 {[%clk 0:02:16]}  Rb8 {[%clk 0:01:04]} 23. Rxb8+ {[%clk 0:02:15]}  Nxb8 {[%clk 0:01:05]} 24. Bg5 {[%clk 0:02:15]}  Bxg5 {[%clk 0:00:58]} 25. Nxg5 {[%clk 0:02:15]}  Qb7 {[%clk 0:00:58]} 26. Nxe6 {[%clk 0:01:57]}  fxe6 {[%clk 0:00:50]} 27. Qxg6+ {[%clk 0:01:56]}  Kf8 {[%clk 0:00:43]} 28. Qxe6 {[%clk 0:01:55]}  Nd7 {[%clk 0:00:31]} 29. Qh6+ {[%clk 0:01:52]}  Ke7 {[%clk 0:00:25]} 30. e6 {[%clk 0:01:45]}  Qb1+ {[%clk 0:00:20]} 31. Kh2 {[%clk 0:01:45]}  Nf6 {[%clk 0:00:19]} 32. f3 {[%clk 0:01:31]}  Kxe6 {[%clk 0:00:18]} 33. Qg7 {[%clk 0:01:29]}  Qf5 {[%clk 0:00:15]} 34. Qc7 {[%clk 0:01:28]}  Qg5 {[%clk 0:00:09]} 35. Qxc6+ {[%clk 0:01:26]}  Kf7 {[%clk 0:00:09]} 36. Qc7+ {[%clk 0:01:24]}  Kg6 {[%clk 0:00:09]} 37. c6 {[%clk 0:01:23]}  Qh4+ {[%clk 0:00:08]} 38. Kg1 {[%clk 0:01:22]}  Qxd4+ {[%clk 0:00:09]} 39. Kf1 {[%clk 0:01:21]}  Qc4+ {[%clk 0:00:08]} 40. Kf2 {[%clk 0:01:20]}  Qc5+ {[%clk 0:00:08]} 41. Kf1 {[%clk 0:01:20]}  d4 {[%clk 0:00:07]} 42. Qd8 {[%clk 0:01:17]}  Qc4+ {[%clk 0:00:06]} 43. Kf2 {[%clk 0:01:17]}  Qc2+ {[%clk 0:00:06]} 44. Kg3 {[%clk 0:01:15]}  Qxc6 {[%clk 0:00:05]} 45. Qxd4 {[%clk 0:01:14]}  Qc7+ {[%clk 0:00:05]} 46. Kf2 {[%clk 0:01:12]}  Qb6 {[%clk 0:00:06]} 47. Qxb6 {[%clk 0:01:02]}  axb6 {[%clk 0:00:06]} 48. Ke3 {[%clk 0:01:02]}  Kg5 {[%clk 0:00:06]} 49. g3 {[%clk 0:01:02]}  Nd7 {[%clk 0:00:05]} 50. Kd4 {[%clk 0:01:02]}  Kf5 {[%clk 0:00:03]} 51. Kd5 {[%clk 0:01:00]}  Kg5 {[%clk 0:00:03]} 52. Kc6 {[%clk 0:00:58]}  Ne5+ {[%clk 0:00:03]} 53. Kxb6 {[%clk 0:00:58]}  Nxf3 {[%clk 0:00:04]} 54. a5 {[%clk 0:00:59]}  Ne5 {[%clk 0:00:04]} 55. a6 {[%clk 0:00:58]}  Nd7+ {[%clk 0:00:04]} 56. Kc7 {[%clk 0:00:58]}  Nc5 {[%clk 0:00:02]} 57. a7 {[%clk 0:00:58]}  Na6+ {[%clk 0:00:02]} 58. Kb6 {[%clk 0:00:58]}  Nb4 {[%clk 0:00:02]} 59. a8=Q {[%clk 0:00:57]} 1-0


[Site "https://www.chess.com"]